[Event "CCT Chesscom Classic-D1 2024"]
[Site "Online"]
[Date "2024.05.13"]
[Round "54"]
[White "Keymer, Vincent"]
[Black "Firouzja, Alireza"]
[Result "0-1"]
[ECO "D32"]
[WhiteElo "2726"]
[BlackElo "2738"]
[Annotator "TA"]
[PlyCount "68"]
[EventDate "2024.05.08"]
[EventType "k.o."]
[EventCountry "NET"]
[SourceTitle "playchess.com"]
[Source "ChessBase"]
[SourceQuality "1"]
[TimeControl "600+2"]

{[%evp 16,68,18,15,12,0,32,0,0,10,11,0,9,0,0,0,0,0,0,0,0,0,0,0,0,-12,-11,-6,-10,-5,28,0,0,0,0,0,0,0,0,0,0,0,10,0,0,-3,-4,-89,-98,-100,-95,-151,-170,-734,-734]} 1. c4 {[%emt 0:00:02]} e6 {[%emt 0:00:05]} 2. Nc3 {[%emt 0:00:05]} d5 {[%emt 0:00:01]} 3. d4 {[%emt 0:00:01]} c5 {[%emt 0:00:01]} 4. cxd5 {[%emt 0:00:13]} exd5 {[%emt 0:00:01]} 5. Nf3 {[%emt 0:00:14]} Nc6 {[%emt 0:00:02]} 6. e3 {[%emt 0:00:25]} Nf6 {[%emt 0:00:04]} 7. Bb5 {[%emt 0:00:01]} cxd4 {[%emt 0:00:07]} 8. Nxd4 {[%emt 0:00:01]} Bd7 {[%emt 0:00:01]} 9. O-O {[%emt 0:00:01]} Bd6 {[%emt 0:00:05]} 10. Nf3 {[%emt 0:00:01][%cal Oe3e4]} a6 {[%emt 0:01:00]} 11. Be2 {[%emt 0:00:25]} Bg4 {[%emt 0:00:23] The position is equal.} 12. h3 {[%emt 0:00:05]} Bh5 {[%emt 0:00:06]} 13. b3 {[%emt 0:00:07]} (13. Nxd5 $2 Nxd5 14. Qd3 (14. Qxd5 $2 Bh2+ 15. Nxh2 Qxd5 $19) 14... Bg6 $19) 13... O-O {[%emt 0:00:03]} 14. Bb2 {[%emt 0:00:01]} (14. Nxd5 $2 Nxd5 15. Bb2 (15. Qxd5 $2 Bh2+ 16. Nxh2 Qxd5 $19) 15... Nf6 $19) 14... Re8 {[%emt 0:00:05]} 15. Nh4 {[%emt 0:00:07]} (15. Nxd5 $2 Nxd5 16. Rc1 (16. Qxd5 $2 Bh2+ 17. Nxh2 Qxd5 $19) 16... Nf6 $19) 15... Bg6 {[%emt 0:00:34]} 16. Nxg6 {[%emt 0:00:13]} (16. Nxd5 $2 Nxd5 17. Nxg6 (17. Qxd5 $2 Bh2+ 18. Kxh2 Qxd5 $19) 17... hxg6 $19 (17... Nxe3 18. fxe3 hxg6 19. Bc4 $14)) 16... hxg6 {[%emt 0:00:01]} 17. Bf3 {[%emt 0:00:34]} (17. Nxd5 $2 Nxd5 18. Bf3 (18. Qxd5 $2 Bh2+ 19. Kxh2 Qxd5 $19) 18... Be5 19. Bxe5 Rxe5 $19) 17... Be5 {[%emt 0:00:09]} 18. Rb1 {[%emt 0:01:02]} d4 {[%emt 0:01:21]} 19. exd4 {[%emt 0:00:14]} Nxd4 {[%emt 0:00:29]} 20. Bxb7 {[%emt 0:01:01] This pair of bishops is nice.} Ra7 {[%emt 0:00:05]} 21. Bf3 {[%emt 0:00:06]} Rd7 {[%emt 0:00:01] [#] aiming for ...Nb5.} 22. Na4 {[%emt 0:00:23]} Qa5 {[%emt 0:03:17]} 23. Kh1 {[%emt 0:02:14]} Nxf3 {[%emt 0:00:38]} 24. Qxf3 {[%emt 0:00:04]} Bxb2 {[%emt 0:00:01]} 25. Rxb2 {[%emt 0:00:02]} Re1 {[%emt 0:00:01]} 26. Rb1 {[%emt 0:00:14]} Rxb1 {[%emt 0:00:01]} 27. Rxb1 {[%emt 0:00:02]} Rd2 {[%emt 0:00:00][%cal Bd7d2,Bd2a2,Ba2a3,Ba3b3][%mdl 32]} 28. a3 {[%emt 0:01:51]} Qe5 {[%emt 0:00:01]} 29. Rd1 {[%emt 0:00:30]} Ra2 {[%emt 0:00:14]} 30. Nc3 {[%emt 0:00:34]} Rxa3 {[%emt 0:00:08]} 31. g3 {[%emt 0:00:01]} (31. Rb1 $11) 31... Rxb3 $17 {[%emt 0:00:17]} 32. Rd8+ {[%emt 0:00:03]} Kh7 {[%emt 0:00:01]} 33. Qa8 {[%emt 0:00:02]} g5 {[%emt 0:00:03]} ({And not} 33... Rxc3 34. Rh8#) ({But not} 33... Qe1+ 34. Kg2 g5 (34... Rxc3 35. Rh8#) 35. Nd5 Qe4+ 36. Kh2 Nxd5 37. Qxd5 $15) 34. Rh8+ $2 {[%emt 0:00:08] [#]} (34. Nd1) 34... Kg6 {[%emt 0:00:02] Weighted Error Value: White=0.26 (precise) /Black=0.04 (flawless) .  Mistake:       	White=3     	---        Inaccurate:     	White=2     	Black=2      OK:         	White=6     	Black=16     Best:        	White=1     	Black=2} 0-1